bitfinex-derivatives/quotes_SOLF0:USTF0_20250626
["timestamp","ask_amount","ask_price","bid_price","bid_amount"]
[1750922533731,3.39942162,145.61,145.54,5.77672162]
[1750922533925,3.39942162,145.61,145.55,2.4706]
[1750922534230,10.26412162,145.61,145.59,6.8652]
[1750922534824,10.26412162,145.61,145.55,2.4706]
[1750922535030,6.8651,145.6,145.58,6.8657]
[1750922535329,3.39942162,145.61,145.55,2.4706]
[1750922535625,10.26422162,145.61,145.59,6.8652]
[1750922535830,3.39942162,145.61,145.59,6.8652]
[1750922536022,3.39942162,145.61,145.55,2.4706]
[1750922536224,6.8642,145.62,145.55,2.4706]
[1750922536534,9.04002042,145.63,145.55,2.4706]
[1750922536831,9.04002042,145.63,145.59,6.8652]
[1750922537329,6.8643,145.62,145.6,6.8648]
[1750922538127,15.90392042,145.63,145.6,6.8648]
[1750922538333,9.04002042,145.63,145.6,6.8648]
[1750922538629,15.90392042,145.63,145.6,6.8648]
[1750922538833,9.04002042,145.63,145.55,2.4706]
[1750922539031,15.90382042,145.63,145.55,5.87002162]
[1750922539235,9.04002042,145.63,145.55,5.87002162]
[1750922539534,5.6405988,145.63,145.61,6.8643]
[1750922539920,5.6405988,145.63,145.58,41.4292]
[1750922540129,5.6405988,145.63,145.62,6.864]
[1750922540734,5.6405988,145.63,145.61,6.8642]
[1750922541034,9.04002042,145.63,145.58,41.4292]
[1750922541231,5.6405988,145.63,145.61,6.8643]
[1750922541533,5.6405988,145.63,145.58,41.4292]
[1750922542121,5.6405988,145.63,145.62,6.864]
[1750922542927,5.6405988,145.63,145.61,6.8642]
[1750922543126,5.6405988,145.63,145.59,3.39942162]
[1750922544336,5.6405988,145.63,145.62,6.864]
[1750922545128,5.6405988,145.63,145.61,6.8643]
[1750922545536,5.6405988,145.63,145.58,41.4292]
[1750922545537,6.8644,145.62,145.58,41.4292]
[1750922545732,3.39942162,145.62,145.58,6.8656]
[1750922546038,9.04002042,145.63,145.56,3.39942162]
[1750922546237,6.8641,145.62,145.59,6.865]
[1750922547639,6.8641,145.62,145.56,3.39942162]
[1750922548140,6.8648,145.61,145.59,6.8652]
[1750922549637,6.8643,145.62,145.59,6.8652]
[1750922550637,6.8643,145.62,145.56,3.39942162]
[1750922551136,6.8643,145.62,145.6,6.865]
[1750922551536,6.8646,145.61,145.56,3.39942162]
[1750922551934,9.04002042,145.63,145.56,3.39942162]
[1750922552133,6.8643,145.62,145.56,3.39942162]
[1750922552340,6.8643,145.62,145.59,6.8652]
[1750922552740,15.90382042,145.63,145.56,3.39942162]
[1750922553344,15.90382042,145.63,145.6,6.8647]
[1750922553842,9.04002042,145.63,145.59,6.8651]
[1750922554047,9.04002042,145.63,145.55,41.4506]
[1750922554340,6.8643,145.62,145.6,6.8648]
[1750922555141,15.90382042,145.63,145.61,6.8645]
[1750922555329,9.04002042,145.63,145.55,41.4506]
[1750922555535,9.04002042,145.63,145.55,44.85002162]
[1750922555843,6.8643,145.62,145.59,6.865]
[1750922556036,6.8643,145.62,145.55,44.85002162]
[1750922556231,9.04002042,145.63,145.55,44.85002162]
[1750922556436,15.90392042,145.63,145.6,6.8646]
[1750922556637,15.90392042,145.63,145.55,44.85002162]
[1750922557143,15.90392042,145.63,145.61,6.8645]
[1750922557545,15.90392042,145.63,145.55,44.85002162]
[1750922557942,15.90392042,145.63,145.6,6.8648]
[1750922558245,6.8641,145.62,145.6,6.8648]
[1750922558440,6.8641,145.62,145.59,6.8653]
[1750922558643,10.26352162,145.62,145.55,44.85002162]
[1750922559140,3.39942162,145.6,145.55,41.4506]
[1750922559339,3.39942162,145.6,145.55,38.98]
[1750922559745,3.39942162,145.6,145.57,6.8661]
[1750922559943,3.39942162,145.6,145.55,38.98]
[1750922560448,3.39942162,145.58,145.52,41.239]
[1750922560846,10.26562162,145.58,145.52,41.239]
[1750922561452,10.26562162,145.58,145.55,6.8671]
[1750922562446,5.6405988,145.63,145.53,13.7365]
[1750922562647,5.6405988,145.63,145.58,3.39564931]
[1750922562845,5.6405988,145.63,145.59,38.98]
[1750922563046,5.6405988,145.63,145.62,6.864]
[1750922580770,593.24,145.74,145.62,3.39066797]
[1750922580981,2.335,145.74,145.64,3.39066797]
[1750922581179,6.8601,145.71,145.64,3.39066797]
[1750922581475,3.39028363,145.72,145.67,6.8613]
[1750922581776,3.39028363,145.7,145.67,6.8613]
[1750922582075,3.39028363,145.68,145.6,38.78]
[1750922582374,3.39028363,145.66,145.6,38.78]
[1750922582576,3.39028363,145.66,145.62,6.8637]
[1750922582974,6.8629,145.65,145.62,6.8637]
[1750922583977,6.8632,145.64,145.62,6.8637]
[1750922584175,6.8632,145.64,145.61,6.8644]
[1750922584379,3.39028363,145.66,145.61,6.8644]
[1750922584576,6.8638,145.63,145.61,6.8644]
[1750922585077,10.25368363,145.64,145.62,6.8638]
[1750922585277,6.8634,145.64,145.62,6.8638]
[1750922585576,3.39028363,145.66,145.6,38.78]
[1750922585771,6.8639,145.63,145.6,45.6448]
[1750922586577,6.8641,145.62,145.6,45.6448]
[1750922586778,6.8641,145.62,145.6,6.8648]
[1750922587079,3.39028363,145.64,145.6,6.8648]
[1750922587777,6.8639,145.63,145.6,6.8648]
[1750922588279,6.8639,145.63,145.61,6.8645]
[1750922589079,2.3156,145.67,145.6,3.39028363]
[1750922589377,2.3156,145.67,145.61,38.78]
[1750922589577,3.39028363,145.69,145.61,38.78]
[1750922590173,6.8616,145.68,145.65,6.8624]
[1750922590676,6.8616,145.68,145.66,6.8621]
[1750922590886,38.78,145.71,145.64,3.39028363]
[1750922591280,6.8606,145.7,145.65,38.78]
[1750922591484,38.78,145.71,145.65,38.78]
[1750922592184,6.8605,145.7,145.67,6.8614]
[1750922592480,38.78,145.71,145.67,6.8614]
[1750922592682,6.861,145.69,145.67,6.8614]
[1750922594083,6.861,145.69,145.66,6.862]
[1750922594583,6.8613,145.68,145.66,6.862]
[1750922596083,6.8617,145.67,145.65,38.78]
[1750922596581,3.39028363,145.7,145.65,38.78]
[1750922596582,6.8622,145.66,145.65,38.78]
[1750922596772,6.8622,145.66,145.62,38.78]
[1750922597186,3.39028363,145.68,145.62,38.78]
[1750922597682,6.8624,145.66,145.63,6.8632]
[1750922598286,6.863,145.65,145.62,45.6436]
[1750922598478,3.39028363,145.68,145.62,38.78]
[1750922598782,3.39028363,145.66,145.61,6.8643]
[1750922599578,6.8635,145.64,145.61,6.8643]
[1750922599784,3.39028363,145.66,145.61,6.8643]
[1750922600085,6.8637,145.63,145.61,6.8643]
[1750922601686,6.8633,145.64,145.59,41.0717]
[1750922602289,6.8633,145.64,145.62,6.8637]
[1750922602481,6.8629,145.65,145.62,6.8637]
[1750922603091,6.8627,145.65,145.62,6.8637]
[1750922604189,6.8627,145.65,145.63,6.8635]
[1750922604391,6.8631,145.64,145.59,41.0717]
[1750922604689,6.8631,145.64,145.62,6.8637]
[1750922606090,6.8631,145.64,145.61,6.8642]
[1750922606491,3.39028363,145.66,145.61,6.8642]
[1750922608287,6.8634,145.64,145.59,41.0717]
[1750922608492,3.39028363,145.66,145.59,41.0717]
[1750922608893,6.8634,145.64,145.61,6.8642]
[1750922610092,3.39028363,145.64,145.59,38.78]
[1750922610392,3.39028363,145.62,145.56,38.54]
[1750922610787,10.25468363,145.62,145.59,6.8651]
[1750922612190,6.8645,145.61,145.59,6.8651]
[1750922614295,5.62489141,145.6,145.59,6.8651]
[1750922617596,10.25458363,145.62,145.59,6.8651]
[1750922617800,5.60232439,145.61,145.59,6.8651]
[1750922617997,10.25458363,145.62,145.59,6.8651]
[1750922617998,5.60232439,145.6,145.59,6.8651]
[1750922618199,5.60232439,145.6,145.58,6.8657]
[1750922618398,5.60232439,145.59,145.58,6.8657]
[1750922618788,10.25478363,145.62,145.59,6.8652]
[1750922618992,5.60177041,145.61,145.59,6.8652]
[1750922619200,5.60177041,145.6,145.59,6.8652]
[1750922621200,8.99205404,145.6,145.54,2.3328]
[1750922621497,5.60177041,145.59,145.54,2.3328]
[1750922621702,5.60177041,145.58,145.54,2.3328]
[1750922622005,5.60177041,145.57,145.54,2.3328]
[1750922622201,6.8658,145.59,145.56,6.8665]
[1750922622402,5.59345912,145.58,145.54,2.3328]
[1750922622594,6.8658,145.59,145.54,2.3328]
[1750922622896,12.45945912,145.58,145.56,6.8665]
[1750922623101,3.39028363,145.6,145.54,2.3328]
[1750922623305,5.59237648,145.59,145.54,2.3328]
[1750922623502,12.45857648,145.58,145.53,43.258]
[1750922623704,5.59237648,145.57,145.53,43.258]
[1750922623899,3.39028363,145.6,145.55,6.8671]
[1750922624105,6.8664,145.57,145.55,6.8671]
[1750922624703,9.62000967,145.6,145.53,43.258]
[1750922624908,5.59071555,145.59,145.53,43.258]
[1750922625201,12.45691555,145.58,145.53,43.258]
[1750922625506,5.59071555,145.57,145.53,43.258]
[1750922625709,2.416,145.61,145.53,43.258]
[1750922626004,5.53462877,145.6,145.56,3.39028363]
[1750922626206,6.8646,145.61,145.59,6.8652]
[1750922626407,5.5171639,145.6,145.59,6.8652]
[1750922632811,10.25458363,145.62,145.6,6.8649]
[1750922633008,5.53234431,145.61,145.6,6.8649]
[1750922634809,10.25408363,145.63,145.6,6.8649]
[1750922635009,5.53189696,145.62,145.6,6.8649]
[1750922635211,10.25408363,145.63,145.6,6.8649]
[1750922635412,5.53802162,145.62,145.6,6.8649]
[1750922635616,6.8641,145.62,145.6,6.8649]
[1750922635809,5.53812455,145.61,145.6,6.8649]
[1750922636814,12.40272455,145.61,145.59,6.8652]
[1750922637112,3.39028363,145.63,145.57,38.56]
[1750922637421,12.40608594,145.62,145.59,6.8651]
[1750922637609,5.54178594,145.61,145.57,38.56]
[1750922637817,5.54178594,145.6,145.57,38.56]
[1750922638120,6.8648,145.61,145.58,6.8655]
[1750922638305,5.54380374,145.6,145.57,38.56]
[1750922638504,5.54380374,145.59,145.58,6.8656]
[1750922639110,10.25458363,145.62,145.59,6.865]
[1750922639317,5.54624397,145.61,145.59,6.865]
[1750922639509,5.54624397,145.6,145.57,38.56]
[1750922639706,5.54624397,145.59,145.58,6.8657]
[1750922639909,3.39028363,145.62,145.57,38.56]
[1750922640106,5.54624071,145.61,145.57,38.56]
[1750922640317,5.54624071,145.6,145.57,38.56]
[1750922640519,10.25458363,145.62,145.59,6.865]
[1750922640720,5.54760603,145.61,145.59,6.865]
[1750922641019,5.5476044,145.6,145.58,6.8657]
[1750922641213,5.5476044,145.59,145.58,6.8657]
[1750922646522,3.39443395,145.69,145.58,142.79443395]
[1750922646724,6.17807413,145.68,145.6,3.39443395]
[1750922647023,13.04007413,145.67,145.64,6.8631]
[1750922647222,6.862,145.67,145.64,6.8631]
[1750922647415,6.17636084,145.68,145.66,6.8619]
[1750922647621,6.17636084,145.68,145.64,3.39443395]
[1750922647816,41.69443395,145.73,145.65,38.3]
[1750922648124,6.8601,145.71,145.68,6.861]
[1750922648416,41.69443395,145.73,145.65,38.3]
[1750922648622,10.39824054,145.72,145.65,38.3]
[1750922648813,4.46335635,145.71,145.68,6.8608]
[1750922649011,12.79448419,145.72,145.68,6.8608]
[1750922649215,4.46335636,145.71,145.69,6.8604]
[1750922649430,8.06453395,145.75,145.66,3.39443395]
[1750922649625,4.46071974,145.74,145.66,5.66493395]
[1750922649820,4.46071974,145.73,145.66,5.66493395]
[1750922650026,6.8596,145.72,145.68,6.861]
[1750922650322,6.8596,145.72,145.66,5.66493395]
[1750922650519,6.8605,145.7,145.67,6.8614]
[1750922650718,3.38959546,145.73,145.66,2.2705]
[1750922651323,3.38959546,145.73,145.66,9.1324]
[1750922651925,6.861,145.69,145.66,9.1324]
[1750922652129,3.38959546,145.73,145.65,50.86379546]
[1750922652325,3.38959546,145.71,145.65,38.3]
[1750922652527,6.862,145.67,145.65,38.3]
[1750922653026,7.87694781,145.71,145.65,38.3]
[1750922653233,4.48735235,145.7,145.65,45.1626]
[1750922653421,7.87694781,145.71,145.65,45.1626]
[1750922653730,6.8612,145.68,145.65,45.1626]
[1750922654124,3.38959546,145.69,145.64,6.8628]
[1750922654326,6.862,145.67,145.62,46.25909546]
[1750922654527,3.38959546,145.69,145.65,6.8625]
[1750922654727,3.38959546,145.71,145.62,46.25909546]
[1750922654922,6.8608,145.69,145.62,46.25909546]
[1750922655123,7.87694781,145.71,145.65,6.8623]
[1750922655431,3.38959546,145.71,145.65,6.8623]
[1750922655830,3.38959546,145.71,145.66,6.8621]
[1750922656719,6.8596,145.72,145.68,3.38959546]
[1750922656924,4.48735235,145.74,145.66,41.66959546]
[1750922657130,3.38959546,145.73,145.66,41.66959546]
[1750922657325,6.8598,145.72,145.66,41.66959546]
[1750922657527,12.54704781,145.75,145.66,41.66959546]
[1750922657731,5.80529546,145.75,145.68,3.38959546]
[1750922658027,6.8587,145.74,145.68,3.38959546]
[1750922658426,5.26403158,145.73,145.71,6.8595]
[1750922658729,9.35335862,145.74,145.68,3.38959546]
[1750922658921,5.26403158,145.73,145.68,3.38959546]
[1750922659125,9.35335862,145.74,145.71,6.8596]
[1750922659322,5.26139568,145.73,145.68,3.38959546]
[1750922659629,9.35285862,145.75,145.72,6.8593]
[1750922659831,5.26139568,145.74,145.68,8.10019546]
[1750922660035,6.8582,145.75,145.69,3.38959546]
[1750922660232,6.98201097,145.76,145.7,38.28]
[1750922660233,5.26098706,145.74,145.7,38.28]
[1750922660537,38.28,145.81,145.71,3.38959546]
[1750922660722,3.38959546,145.78,145.7,41.66959546]
[1750922660926,5.25761849,145.77,145.7,41.66959546]
[1750922661126,3.38959546,145.78,145.7,38.28]
[1750922661327,3.38959546,145.76,145.7,38.28]
[1750922661528,8.64262469,145.76,145.7,38.28]
[1750922661834,6.8587,145.74,145.71,6.8596]
[1750922662030,3.38959546,145.74,145.68,4.7106]
[1750922662236,3.38959546,145.74,145.7,6.8602]
[1750922662434,6.8591,145.73,145.69,38.28]
[1750922662735,3.38959546,145.74,145.69,38.28]
[1750922663037,3.38959546,145.74,145.69,45.1406]
[1750922663535,6.8597,145.72,145.69,45.1406]
[1750922664535,3.38959546,145.74,145.69,38.28]
[1750922664937,3.38959546,145.74,145.69,45.1406]
[1750922665236,3.38959546,145.74,145.69,38.28]
[1750922665431,6.8593,145.73,145.7,6.86]
[1750922666038,3.38959546,145.74,145.7,6.86]
[1750922666425,6.859,145.73,145.7,6.86]
[1750922667329,10.24819546,145.74,145.71,6.8596]
[1750922667529,6.8586,145.74,145.71,6.8596]
[1750922668439,6.8591,145.73,145.7,6.86]
[1750922668639,3.38959546,145.74,145.69,38.28]
[1750922668840,40.5574,145.77,145.69,38.28]
[1750922669040,6.8593,145.73,145.7,6.8601]
[1750922669240,6.8593,145.73,145.69,38.28]
[1750922669442,6.8593,145.73,145.7,6.8599]
[1750922669742,6.8595,145.72,145.7,6.8599]
[1750922670937,6.8599,145.71,145.69,45.1406]
[1750922671142,6.8599,145.71,145.69,6.8606]
[1750922671439,3.38959546,145.74,145.67,40.3144]
[1750922671643,6.859,145.73,145.67,40.3144]
[1750922671847,6.859,145.73,145.67,44.9597]
[1750922672146,6.859,145.73,145.71,6.8596]
[1750922673547,3.38959546,145.74,145.71,6.8596]
[1750922673938,3.38959546,145.76,145.68,3.38959546]
[1750922674335,3.38959546,145.74,145.67,44.9597]
[1750922674542,10.24819546,145.74,145.71,6.8597]
[1750922674844,10.24819546,145.74,145.67,44.9597]
[1750922675150,3.38959546,145.74,145.67,44.9597]
[1750922675645,6.8591,145.73,145.7,6.8598]
[1750922676040,3.38959546,145.75,145.67,44.9597]
[1750922676242,6.8586,145.74,145.71,6.8594]
[1750922676640,2.2774,145.77,145.68,3.38959546]
[1750922676847,6.8572,145.77,145.69,38.04]
[1750922677047,5.88940885,145.79,145.71,3.38959546]
[1750922677247,2.455,145.81,145.69,38.04]
[1750922677248,3.38678531,145.81,145.69,630.68]
[1750922677451,3.38678531,145.79,145.7,3.38678531]
[1750922677842,10.24318531,145.79,145.7,3.38678531]
[1750922678046,38.04,145.82,145.72,3.38678531]
[1750922678241,3.38678531,145.81,145.73,40.2963]
[1750922678450,3.38640569,145.8,145.74,38.04]
[1750922679048,6.8564,145.79,145.76,6.8571]
[1750922679250,3.38640569,145.8,145.74,38.04]
[1750922679454,6.8568,145.78,145.75,6.8577]
[1750922679648,6.8568,145.78,145.74,38.04]
[1750922680049,6.8563,145.79,145.76,6.8574]
[1750922680448,6.8563,145.79,145.74,38.04]
[1750922681755,7.42000084,145.82,145.74,41.42640569]
[1750922681955,3.38640569,145.83,145.74,43.85370569]
[1750922682354,6.8555,145.81,145.78,6.8562]
[1750922682554,6.8555,145.81,145.74,43.85370569]
[1750922682751,3.38640569,145.83,145.74,43.85370569]
[1750922682950,6.8549,145.82,145.79,6.8558]
[1750922683861,6.8549,145.82,145.8,6.8556]
[1750922685160,38.02,145.84,145.76,3.38640569]
[1750922685557,6.8546,145.83,145.76,3.38640569]
[1750922685757,38.02,145.84,145.76,3.38640569]
[1750922686262,38.02,145.84,145.74,2.4273]
[1750922686263,3.38640569,145.81,145.74,2.4273]
[1750922686561,46.3229074,145.84,145.74,2.4273]
[1750922686562,3.38640569,145.79,145.74,2.4273]
[1750922686758,3.38640569,145.79,145.75,6.8575]
[1750922686961,3.38640569,145.77,145.58,20.5971]
[1750922687155,3.38640569,145.77,145.69,634.04640569]
[1750922687356,3.38640569,145.77,145.73,6.8588]
[1750922687862,6.858,145.75,145.73,6.8588]
[1750922688064,3.38640569,145.77,145.73,6.8588]
[1750922688468,3.38640569,145.77,145.72,6.8593]
[1750922688954,6.8585,145.74,145.71,6.8594]
[1750922689160,6.8585,145.74,145.69,630.66]
[1750922689362,5.89407711,145.77,145.69,630.66]
[1750922689561,6.8582,145.75,145.69,630.66]
[1750922690060,6.8582,145.75,145.72,6.8589]
[1750922690262,6.8582,145.75,145.69,630.66]
[1750922690865,4.91650171,145.77,145.7,3.38640569]
[1750922691060,10.81986328,145.78,145.72,3.38640569]
[1750922691260,2.51695588,145.77,145.75,6.8576]
[1750922691469,14.29867218,145.78,145.75,6.8576]
[1750922691668,2.51695588,145.77,145.75,6.8576]
[1750922691962,2.51695588,145.77,145.76,6.8575]
[1750922692164,4.92461082,145.79,145.73,40.2462]
[1750922692466,41.40640569,145.8,145.73,40.2462]
[1750922692770,6.8568,145.78,145.73,40.2462]
[1750922693469,6.8563,145.79,145.76,6.8572]
[1750922693669,41.40640569,145.8,145.76,6.8572]
[1750922693870,6.8565,145.79,145.76,6.8572]
[1750922694269,6.8565,145.79,145.77,6.857]
[1750922694568,6.8565,145.79,145.73,40.2462]
[1750922695162,11.78152338,145.79,145.73,40.2462]
[1750922695362,6.8565,145.79,145.76,6.8572]
[1750922695762,3.38640569,145.83,145.76,3.38640569]
[1750922696163,6.8554,145.81,145.74,8.25160569]
[1750922696961,6.8554,145.81,145.78,6.8563]
[1750922697160,6.8558,145.8,145.74,4.8652]
[1750922697367,9.36602022,145.8,145.74,4.8652]
[1750922697561,2.51022022,145.79,145.74,4.8652]
[1750922697762,4.93553974,145.8,145.73,38.02]
[1750922698071,6.8573,145.77,145.74,6.8581]
[1750922698270,3.38640569,145.78,145.73,38.02]
[1750922698973,6.8572,145.77,145.74,6.858]
[1750922699174,6.8572,145.77,145.73,38.02]
[1750922699475,6.8572,145.77,145.74,6.858]
[1750922699867,9.3777823,145.77,145.74,6.858]
[1750922700269,6.8572,145.77,145.74,6.858]
[1750922701584,6.8572,145.77,145.73,38.02]
[1750922701871,3.38640569,145.78,145.73,38.02]
[1750922702069,7.80232588,145.8,145.75,6.8576]
[1750922702274,7.46276596,145.79,145.75,6.8576]
[1750922702478,5.86955274,145.81,145.74,3.38640569]
[1750922702676,5.86955274,145.81,145.76,3.38640569]
[1750922702872,6.8553,145.81,145.76,3.38640569]
[1750922703072,3.38640569,145.83,145.79,6.8558]
[1750922703467,6.8549,145.82,145.79,6.8558]
[1750922704177,10.24080569,145.83,145.8,6.8556]
[1750922704678,6.8544,145.83,145.76,3.38640569]
[1750922704879,6.8544,145.83,145.77,4.7278]
[1750922705080,6.8546,145.82,145.77,4.7278]
[1750922705271,7.4745887,145.83,145.77,4.7278]
[1750922705466,3.38640569,145.83,145.77,4.7278]
[1750922705776,9.36987943,145.82,145.77,4.7278]
[1750922706173,6.8549,145.82,145.77,4.7278]
[1750922706380,3.38640569,145.81,145.74,3.38640569]
[1750922706881,2.51438247,145.81,145.74,3.38640569]
[1750922707275,6.8558,145.8,145.77,6.8567]
[1750922708174,6.8558,145.8,145.76,6.8572]
[1750922708175,6.856,145.79,145.76,6.8572]
[1750922708979,37.84,145.81,145.74,3.38640569]
[1750922709380,40.36444365,145.81,145.74,3.38640569]
[1750922709580,6.8559,145.8,145.76,6.857]
[1750922709880,6.8559,145.8,145.74,3.38640569]
[1750922710074,6.8559,145.8,145.77,6.8568]
[1750922711184,6.8559,145.8,145.78,6.8565]
[1750922711378,6.8559,145.8,145.74,3.38640569]
[1750922711878,6.8559,145.8,145.77,6.8567]
[1750922712478,6.8561,145.79,145.77,6.8567]
[1750922712681,3.38640569,145.8,145.76,6.8572]
[1750922712977,3.38640569,145.8,145.73,42.6672]
[1750922712978,6.8567,145.78,145.73,42.6672]
[1750922713179,3.38640569,145.78,145.71,2.3334]
[1750922713569,10.24390569,145.76,145.71,2.3334]
[1750922713779,3.38640569,145.76,145.71,2.3334]
[1750922713973,3.38640569,145.76,145.7,37.84]
[1750922714176,6.8583,145.75,145.72,6.8591]
[1750922714386,3.38640569,145.74,145.7,37.84]
[1750922714675,6.8591,145.73,145.71,6.8596]
[1750922714884,3.38640569,145.74,145.71,6.8596]
[1750922715178,3.38640569,145.74,145.69,4.7001]
[1750922715380,3.38640569,145.74,145.71,6.8597]
[1750922715586,10.24500569,145.74,145.71,6.8597]
[1750922716484,6.8594,145.72,145.69,6.8604]
[1750922716686,6.8594,145.72,145.66,4.6335]
[1750922717985,4.96056333,145.74,145.66,2.3534]
[1750922718184,10.8703957,145.73,145.66,2.3534]
[1750922718383,2.52342668,145.72,145.66,2.3534]
[1750922718884,6.86,145.71,145.68,6.8609]
[1750922720583,3.38640569,145.71,145.67,6.8616]
[1750922720779,3.38640569,145.71,145.65,37.84]
[1750922720981,6.8613,145.68,145.65,6.8624]
[1750922721185,2.50939917,145.7,145.63,2.2801]
[1750922721887,3.38640569,145.69,145.63,2.2801]
[1750922722690,6.8615,145.68,145.65,6.8626]
[1750922724099,10.24740569,145.69,145.66,6.8621]
[1750922724395,3.38640569,145.71,145.63,2.2801]
[1750922724590,3.38640569,145.71,145.67,6.8616]
[1750922724892,6.8605,145.7,145.67,6.8616]
[1750922725885,3.38640569,145.71,145.66,6.8622]
[1750922726197,3.38640569,145.69,145.63,2.2801]
[1750922726396,3.38640569,145.67,145.61,4.6613]
[1750922726986,41.24640569,145.69,145.61,8.04770569]
[1750922727496,6.8615,145.68,145.65,6.8624]
[1750922728096,41.24640569,145.69,145.65,6.8624]
[1750922728290,6.8613,145.68,145.65,6.8624]
[1750922728491,41.24640569,145.69,145.64,6.8629]
[1750922728892,6.8619,145.67,145.64,6.8629]
[1750922729998,6.8623,145.66,145.63,6.8632]
[1750922730896,6.8618,145.67,145.61,4.6613]
[1750922731196,41.24640569,145.69,145.62,3.38640569]
[1750922731791,6.8613,145.68,145.62,3.38640569]
[1750922732190,41.24640569,145.69,145.61,8.04770569]
[1750922732598,6.8617,145.67,145.61,8.04770569]
[1750922733094,6.8624,145.66,145.63,6.8634]
[1750922733294,3.38640569,145.67,145.61,4.6613]
[1750922734994,37.86,145.69,145.63,6.8633]
[1750922735203,3.38640569,145.68,145.61,4.6613]
[1750922735707,3.38640569,145.68,145.63,6.8631]
[1750922736005,3.38640569,145.68,145.61,4.6613]
[1750922736199,3.38640569,145.68,145.59,37.86]
[1750922736399,3.38640569,145.66,145.59,37.86]
[1750922736600,37.72,145.65,145.59,37.86]
[1750922736799,37.72,145.65,145.59,41.24640569]
[1750922736997,37.72,145.65,145.61,3.38640569]
[1750922737199,41.10640569,145.68,145.61,3.38640569]
[1750922737608,6.8624,145.66,145.63,6.8635]
[1750922738408,6.8627,145.65,145.63,6.8635]
[1750922738608,41.10640569,145.68,145.63,6.8635]
[1750922738807,6.8625,145.66,145.63,6.8635]
[1750922739303,6.8625,145.66,145.64,6.8629]
[1750922739509,6.8625,145.66,145.61,3.38640569]
[1750922740308,6.8631,145.64,145.59,41.24640569]
[1750922740809,6.8631,145.64,145.61,6.8642]
[1750922741004,6.8631,145.64,145.59,41.24640569]
[1750922741407,6.8628,145.65,145.62,6.8638]
[1750922741609,41.10640569,145.68,145.59,41.24640569]
[1750922742408,37.72,145.68,145.59,41.24640569]
[1750922742608,3.38640569,145.66,145.59,41.24640569]
[1750922743108,6.8633,145.64,145.61,6.8645]
[1750922743307,6.8633,145.64,145.59,41.24640569]
[1750922743511,6.8633,145.64,145.59,37.86]
[1750922743810,6.8628,145.65,145.62,6.8637]
[1750922744011,6.8628,145.65,145.59,37.86]
[1750922744509,6.8632,145.64,145.59,37.86]
[1750922744708,3.38640569,145.66,145.59,37.86]
[1750922745808,6.8631,145.64,145.62,6.8638]
[1750922747316,37.72,145.68,145.59,37.86]
[1750922747610,41.10640569,145.68,145.6,3.38640569]
[1750922748608,6.8623,145.66,145.64,6.8629]
[1750922750711,6.8623,145.66,145.63,6.8633]
[1750922751013,6.8623,145.66,145.6,3.38640569]
[1750922752012,6.8621,145.67,145.64,6.8629]
[1750922752216,41.10640569,145.68,145.6,3.38640569]
[1750922752614,6.8619,145.67,145.6,3.38640569]
[1750922752818,6.8619,145.67,145.64,6.8627]
[1750922753820,6.8619,145.67,145.65,6.8625]
[1750922754137,44.5815,145.68,145.6,3.38640569]
[1750922754422,6.8617,145.67,145.6,3.38640569]
[1750922755129,6.8617,145.67,145.65,6.8626]
[1750922756626,37.72,145.68,145.6,3.38640569]
[1750922757326,44.5815,145.68,145.65,6.8622]
[1750922757626,122.77045875,145.72,145.65,3.39087001]
[1750922757828,6.8605,145.7,145.68,6.8611]
[1750922758022,122.77045875,145.72,145.68,6.8611]
[1750922758221,2.5035822,145.71,145.68,6.8611]
[1750922758527,6.86,145.71,145.68,6.8611]
[1750922759125,129.63005875,145.72,145.69,6.8607]
[1750922759620,129.63005875,145.72,145.65,3.39087001]
[1750922760127,6.86,145.71,145.68,6.861]
[1750922760520,7.68295722,145.73,145.68,6.861]